fUSD/lending_fUSD_20250623
["ID","MTS","AMOUNT","RATE_DAILY","PERIOD"]
[367195609,1750698638716,-490.0,0.00022992,2]
[367195610,1750698638725,-490.0,0.00022992,2]
[367195612,1750698638734,-490.0,0.00022992,2]
[367195614,1750698638743,-490.0,0.00022992,2]
[367195616,1750698638753,-2045.16131156,0.00022992,2]
[367195618,1750698638762,-577.68,0.00022993,2]
[367195620,1750698638771,-1286.37,0.00022993,2]
[367195622,1750698638781,-490.0,0.00022993,2]
[367195624,1750698638790,-891.33,0.00022993,2]
[367195626,1750698638799,-490.0,0.00022993,2]
[367195628,1750698638812,-490.0,0.00022993,2]
[367195630,1750698638821,-490.0,0.00022993,2]
[367195632,1750698638831,-490.0,0.00022993,2]
[367195634,1750698638840,-547.12,0.00022993,2]
[367195636,1750698638849,-607.15,0.00022993,2]
[367195638,1750698638859,-915.13,0.00022993,2]
[367195640,1750698638868,-459.65242602,0.00022993,2]
[367195642,1750698638877,-490.0,0.00022993,2]
[367195644,1750698638887,-490.0,0.00022993,2]
[367195646,1750698638896,-490.0,0.00022993,2]
[367195648,1750698638905,-490.0,0.00022993,2]
[367195650,1750698638915,-490.0,0.00022993,2]
[367195652,1750698638925,-519.94,0.00022993,2]
[367195654,1750698638934,-827.87,0.00022993,2]
[367195656,1750698638943,-490.0,0.00022993,2]
[367195658,1750698638953,-490.0,0.00022993,2]
[367195660,1750698638962,-490.0,0.00022993,2]
[367195662,1750698638972,-490.0,0.00022993,2]
[367195664,1750698638980,-528.13,0.00022993,2]
[367195666,1750698638989,-735.18,0.00022993,2]
[367195668,1750698638998,-490.0,0.00022993,2]
[367195670,1750698639006,-490.0,0.00022993,2]
[367195672,1750698639015,-236.09972361,0.00022993,2]
[367195675,1750698639029,-490.0,0.00022993,2]
[367195677,1750698639043,-490.0,0.00022993,2]
[367195679,1750698639052,-490.0,0.00022993,2]
[367195681,1750698639065,-490.0,0.00022993,2]
[367195683,1750698639075,-255.66698927,0.00022993,2]
[367195685,1750698639084,-490.0,0.00022993,2]
[367195687,1750698639093,-503.9,0.00022993,2]
[367195688,1750698639102,-490.0,0.00022993,2]
[367195690,1750698639112,-366.16535066,0.00022993,2]
[367195692,1750698639121,-868.27,0.00022993,2]
[367195694,1750698639131,-577.29,0.00022993,2]
[367195696,1750698639140,-560.27892986,0.00022993,2]
[367195698,1750698639151,-490.0,0.00022993,2]
[367195700,1750698639160,-490.0,0.00022993,2]
[367195702,1750698639170,-490.0,0.00022993,2]
[367195704,1750698639180,-490.0,0.00022993,2]
[367195706,1750698639190,-532.41,0.00022993,2]
[367195708,1750698639200,-713.81,0.00022993,2]
[367195710,1750698639209,-490.0,0.00022993,2]
[367195712,1750698639219,-514.33613064,0.00022993,2]
[367195714,1750698639228,-639.62,0.00022993,2]
[367195716,1750698639237,-490.0,0.00022993,2]
[367195718,1750698639246,-490.0,0.00022993,2]
[367195720,1750698639256,-490.0,0.00022993,2]
[367195722,1750698639266,-490.0,0.00022993,2]
[367195724,1750698639276,-490.0,0.00022993,2]
[367195726,1750698639285,-490.0,0.00022993,2]
[367195728,1750698639294,-503.62,0.00022993,2]
[367195730,1750698639304,-490.0,0.00022993,2]
[367195732,1750698639316,-1449.54,0.00022993,2]
[367195734,1750698639325,-490.0,0.00022993,2]
[367195736,1750698639334,-2103.74,0.00022993,2]
[367195738,1750698639343,-1502.01,0.00022993,2]
[367195739,1750698639353,-490.0,0.00022993,2]
[367195740,1750698639363,-490.0,0.00022993,2]
[367195741,1750698639372,-490.0,0.00022993,2]
[367195742,1750698639382,-490.0,0.00022993,2]
[367195743,1750698639392,-1281.35,0.00022993,2]
[367195744,1750698639402,-490.0,0.00022993,2]
[367195745,1750698639411,-490.0,0.00022993,2]
[367195746,1750698639421,-1013.96,0.00022993,2]
[367195747,1750698639431,-330.1260351,0.00022993,2]
[367195748,1750698639440,-978.16,0.00022993,2]
[367195750,1750698639449,-706.03,0.00022993,2]
[367195751,1750698639458,-490.0,0.00022993,2]
[367195753,1750698639468,-490.0,0.00022993,2]
[367195755,1750698639477,-490.0,0.00022993,2]
[367195757,1750698639486,-490.0,0.00022993,2]
[367195759,1750698639495,-490.0,0.00022993,2]
[367195761,1750698639504,-490.0,0.00022993,2]
[367195762,1750698639513,-490.0,0.00022993,2]
[367195763,1750698639523,-490.0,0.00022993,2]
[367195764,1750698639532,-851.97,0.00022993,2]
[367195765,1750698639541,-490.0,0.00022993,2]
[367195766,1750698639552,-490.0,0.00022993,2]
[367195767,1750698639565,-490.0,0.00022993,2]
[367195768,1750698639575,-490.0,0.00022993,2]
[367195769,1750698639585,-968.94,0.00022993,2]
[367195770,1750698639595,-490.0,0.00022993,2]
[367195771,1750698639606,-1305.56,0.00022993,2]
[367195772,1750698639616,-605.32,0.00022993,2]
[367195773,1750698639626,-490.0,0.00022993,2]
[367195774,1750698639636,-1523.12,0.00022993,2]
[367195775,1750698639647,-496.3,0.00022993,2]
[367195776,1750698639657,-596.62,0.00022993,2]
[367195777,1750698639667,-490.0,0.00022993,2]
[367195778,1750698639677,-517.57764792,0.00022993,2]
[367195779,1750698639687,-192.54729207,0.00022993,2]
[367195780,1750698639696,-490.0,0.00022993,2]
[367195781,1750698639707,-490.0,0.00022993,2]
[367195782,1750698639717,-490.0,0.00022993,2]
[367195783,1750698639726,-1231.23,0.00022993,2]
[367195784,1750698639736,-490.0,0.00022993,2]
[367195785,1750698639746,-640.93,0.00022993,2]
[367195786,1750698639757,-490.0,0.00022993,2]
[367195788,1750698639768,-1091.48,0.00022993,2]
[367195789,1750698639779,-490.0,0.00022993,2]
[367195790,1750698639790,-736.66,0.00022993,2]
[367195791,1750698639801,-1000.0,0.00022993,2]
[367195792,1750698639816,-490.0,0.00022993,2]
[367195793,1750698639826,-490.0,0.00022993,2]
[367195794,1750698639836,-490.0,0.00022993,2]
[367195795,1750698639846,-490.0,0.00022993,2]
[367195796,1750698639856,-1296.4,0.00022993,2]
[367195797,1750698639866,-490.0,0.00022993,2]
[367195798,1750698639876,-287.06741414,0.00022993,2]
[367195799,1750698639887,-687.53,0.00022993,2]
[367195800,1750698639898,-490.0,0.00022993,2]
[367195801,1750698639908,-332.74935112,0.00022993,2]
[367195802,1750698639918,-577.42,0.00022993,2]
[367195803,1750698639927,-490.0,0.00022993,2]
[367195804,1750698639938,-490.0,0.00022993,2]
[367195805,1750698639952,-994.99,0.00022993,2]
[367195806,1750698639966,-490.0,0.00022993,2]
[367195807,1750698639976,-490.0,0.00022993,2]
[367195808,1750698639987,-1465.11,0.00022993,2]
[367195809,1750698639998,-500.0,0.00022993,2]
[367195810,1750698640009,-490.0,0.00022993,2]
[367195811,1750698640020,-659.98,0.00022993,2]
[367195812,1750698640033,-1163.27,0.00022993,2]
[367195813,1750698640045,-1296.64,0.00022993,2]
[367195814,1750698640056,-490.0,0.00022993,2]
[367195815,1750698640076,-805.19,0.00022993,2]
[367195816,1750698640087,-490.0,0.00022993,2]
[367195817,1750698640098,-490.0,0.00022993,2]
[367195818,1750698640108,-490.0,0.00022993,2]
[367195819,1750698640119,-798.6,0.00022993,2]
[367195820,1750698640130,-961.74,0.00022993,2]
[367195821,1750698640140,-490.0,0.00022993,2]
[367195822,1750698640151,-490.0,0.00022993,2]
[367195823,1750698640161,-490.0,0.00022993,2]
[367195824,1750698640173,-490.0,0.00022993,2]
[367195825,1750698640184,-586.53,0.00022993,2]
[367195826,1750698640195,-711.71,0.00022993,2]
[367195827,1750698640206,-490.0,0.00022993,2]
[367195828,1750698640218,-1316.01,0.00022993,2]
[367195829,1750698640229,-490.0,0.00022993,2]
[367195830,1750698640240,-490.0,0.00022993,2]
[367195831,1750698640250,-2071.77,0.00022993,2]
[367195832,1750698640261,-490.0,0.00022993,2]
[367195833,1750698640272,-490.0,0.00022993,2]
[367195834,1750698640282,-490.0,0.00022993,2]
[367195835,1750698640292,-490.0,0.00022993,2]
[367195836,1750698640303,-490.0,0.00022993,2]
[367195837,1750698640319,-392.6055373,0.00022993,2]
[367195838,1750698640329,-707.92,0.00022993,2]
[367195839,1750698640340,-515.89581016,0.00022993,2]
[367195840,1750698640350,-490.0,0.00022993,2]
[367195841,1750698640360,-490.0,0.00022993,2]
[367195842,1750698640370,-988.12,0.00022993,2]
[367195843,1750698640381,-1316.04,0.00022993,2]
[367195844,1750698640391,-490.0,0.00022993,2]
[367195845,1750698640402,-490.0,0.00022993,2]
[367195846,1750698640411,-490.0,0.00022993,2]
[367195847,1750698640421,-943.07,0.00022993,2]
[367195848,1750698640431,-300.0,0.00022993,2]
[367195849,1750698640441,-490.0,0.00022993,2]
[367195850,1750698640451,-1649.14,0.00022993,2]
[367195851,1750698640462,-677.43,0.00022993,2]
[367195852,1750698640472,-490.0,0.00022993,2]
[367195853,1750698640482,-2574.3,0.00022993,2]
[367195854,1750698640492,-1451.84,0.00022993,2]
[367195855,1750698640503,-1302.67,0.00022993,2]
[367195856,1750698640513,-761.66,0.00022993,2]
[367195857,1750698640523,-671.45,0.00022993,2]
[367195858,1750698640533,-1201.92,0.00022993,2]
[367195859,1750698640543,-490.0,0.00022993,2]
[367195860,1750698640554,-490.0,0.00022993,2]
[367195861,1750698640568,-490.0,0.00022993,2]
[367195862,1750698640579,-740.56,0.00022993,2]
[367195863,1750698640590,-490.0,0.00022993,2]
[367195864,1750698640600,-490.0,0.00022993,2]
[367195865,1750698640611,-490.0,0.00022993,2]
[367195866,1750698640622,-1463.6,0.00022993,2]
[367195867,1750698640632,-1384.87,0.00022993,2]
[367195868,1750698640643,-1565.89,0.00022993,2]
[367195869,1750698640653,-490.0,0.00022993,2]
[367195870,1750698640663,-581.5,0.00022993,2]
[367195871,1750698640673,-1274.36,0.00022993,2]
[367195872,1750698640684,-3207.81,0.00022993,2]
[367195873,1750698640694,-490.0,0.00022993,2]
[367195874,1750698640704,-1136.75,0.00022993,2]
[367195875,1750698640715,-490.0,0.00022993,2]
[367195876,1750698640725,-1015.78,0.00022993,2]
[367195877,1750698640736,-469.76385403,0.00022993,2]
[367195878,1750698640746,-508.28,0.00022993,2]
[367195879,1750698640757,-237.46646475,0.00022993,2]
[367195880,1750698640767,-490.0,0.00022993,2]
[367195881,1750698640777,-490.0,0.00022993,2]
[367195882,1750698640787,-645.34,0.00022993,2]
[367195883,1750698640798,-1082.91,0.00022993,2]
[367195884,1750698640808,-570.24,0.00022993,2]
[367195885,1750698640823,-3216.41,0.00022993,2]
[367195886,1750698640833,-1198.83,0.00022993,2]
[367195887,1750698640843,-490.0,0.00022993,2]
[367195888,1750698640853,-777.62,0.00022993,2]
[367195889,1750698640863,-642.42,0.00022993,2]
[367195890,1750698640873,-3260.51,0.00022993,2]
[367195891,1750698640883,-1064.93,0.00022993,2]
[367195892,1750698640894,-2313.09,0.00022993,2]
[367195893,1750698640904,-690.62,0.00022993,2]
[367195894,1750698640914,-490.0,0.00022993,2]
[367195895,1750698640924,-490.0,0.00022993,2]
[367195896,1750698640934,-490.0,0.00022993,2]
[367195897,1750698640945,-1610.22,0.00022993,2]
[367195898,1750698640955,-3410.48,0.00022993,2]
[367195899,1750698640966,-490.0,0.00022993,2]
[367195900,1750698640976,-490.0,0.00022993,2]
[367195901,1750698640986,-1189.88,0.00022993,2]
[367195902,1750698640996,-503.76,0.00022993,2]
[367195903,1750698641006,-1292.27,0.00022993,2]
[367195904,1750698641016,-1272.73,0.00022993,2]
[367195905,1750698641028,-1305.05,0.00022993,2]
[367195906,1750698641040,-490.0,0.00022993,2]
[367195907,1750698641050,-490.0,0.00022993,2]
[367195908,1750698641063,-490.0,0.00022993,2]
[367195909,1750698641075,-490.0,0.00022993,2]
[367195910,1750698641086,-5009.26,0.00022993,2]
[367195911,1750698641096,-802.99,0.00022993,2]
[367195912,1750698641108,-1417.36,0.00022993,2]
[367195913,1750698641118,-534.32,0.00022993,2]
[367195914,1750698641128,-490.0,0.00022993,2]
[367195915,1750698641138,-1871.08,0.00022993,2]
[367195916,1750698641149,-490.0,0.00022993,2]
[367195917,1750698641159,-490.0,0.00022993,2]
[367195918,1750698641169,-1102.28,0.00022993,2]
[367195919,1750698641180,-978.05,0.00022993,2]
[367195920,1750698641190,-1290.08,0.00022993,2]
[367195921,1750698641201,-490.0,0.00022993,2]
[367195922,1750698641211,-757.53,0.00022993,2]
[367195923,1750698641222,-490.0,0.00022993,2]
[367195924,1750698641328,-490.0,0.00022993,2]
[367195925,1750698641339,-6273.63,0.00022993,2]
[367195926,1750698641349,-490.0,0.00022993,2]
[367195927,1750698641359,-2190.49,0.00022993,2]
[367195928,1750698641369,-490.0,0.00022993,2]
[367195929,1750698641379,-300.0,0.00022993,2]
[367195930,1750698641389,-693.85,0.00022993,2]
[367195931,1750698641400,-969.95,0.00022993,2]
[367195932,1750698641410,-844.27,0.00022993,2]
[367195933,1750698641419,-490.0,0.00022993,2]
[367195934,1750698641429,-1768.01,0.00022993,2]
[367195935,1750698641438,-490.0,0.00022993,2]
[367195936,1750698641448,-448.99114996,0.00022993,2]
[367195937,1750698641458,-394.93209564,0.00022993,2]
[367195938,1750698641468,-1033.79,0.00022993,2]
[367195939,1750698641478,-490.0,0.00022993,2]
[367195940,1750698641488,-2829.12,0.00022993,2]
[367195941,1750698641498,-490.0,0.00022993,2]
[367195942,1750698641508,-1421.12,0.00022993,2]
[367195943,1750698641518,-490.0,0.00022993,2]
[367195944,1750698641527,-3039.87,0.00022993,2]
[367195945,1750698641537,-648.39,0.00022993,2]
[367195946,1750698641546,-648.39,0.00022993,2]
[367195947,1750698641556,-322.68316268,0.00022993,2]
[367195948,1750698641570,-490.0,0.00022993,2]
[367195950,1750698641580,-500.0,0.00022993,2]
[367195952,1750698641590,-169.3971,0.00022993,2]
[367195954,1750698641600,-294.12370064,0.00022993,2]
[367195956,1750698641609,-500.0,0.00022993,2]
[367195958,1750698641619,-196.08950228,0.00022993,2]
[367195960,1750698641629,-355.28,0.00022994,2]
[367195962,1750698641639,-490.0,0.00022994,2]
[367195964,1750698641650,-490.0,0.00022994,2]
[367195966,1750698641659,-490.0,0.00022994,2]
[367195968,1750698641669,-821.3,0.00022994,2]
[367195970,1750698641679,-1673.72,0.00022994,2]
[367195972,1750698641688,-2237.1,0.00022994,2]
[367195974,1750698641698,-1610.12,0.00022994,2]
[367195976,1750698641708,-1083.0,0.00022994,2]
[367195978,1750698641718,-1106.33,0.00022994,2]
[367195980,1750698641728,-490.0,0.00022994,2]
[367195982,1750698641738,-490.0,0.00022994,2]
[367195984,1750698641748,-490.0,0.00022994,2]
[367195986,1750698641758,-490.0,0.00022994,2]
[367195988,1750698641767,-2050.62,0.00022994,2]
[367195990,1750698641777,-1208.82,0.00022994,2]
[367195992,1750698641787,-490.0,0.00022994,2]
[367195994,1750698641797,-498.0,0.00022994,2]
[367195996,1750698641807,-1726.23,0.00022994,2]
[367195998,1750698641819,-719.16,0.00022994,2]
[367196000,1750698641831,-490.0,0.00022994,2]
[367196002,1750698641842,-1608.26,0.00022994,2]
[367196004,1750698641852,-1628.29,0.00022994,2]
[367196006,1750698641862,-1088.21,0.00022994,2]
[367196008,1750698641871,-603.14433216,0.00022994,2]
[367196010,1750698641881,-490.0,0.00022994,2]
[367196012,1750698641890,-1428.05,0.00022994,2]
[367196014,1750698641900,-490.0,0.00022994,2]
[367196016,1750698641910,-548.65,0.00022994,2]
[367196019,1750698641920,-608.03,0.00022994,2]
[367196021,1750698641930,-1785.44,0.00022994,2]
[367196023,1750698641939,-1037.72,0.00022994,2]
[367196025,1750698641949,-490.0,0.00022994,2]
[367196026,1750698641959,-490.0,0.00022994,2]
[367196029,1750698641969,-490.0,0.00022994,2]
[367196030,1750698641979,-490.0,0.00022994,2]
[367196033,1750698641989,-490.0,0.00022994,2]
[367196035,1750698641998,-938.56,0.00022994,2]
[367196037,1750698642007,-490.0,0.00022994,2]
[367196039,1750698642017,-490.0,0.00022994,2]
[367196041,1750698642029,-490.0,0.00022994,2]
[367196043,1750698642038,-490.0,0.00022994,2]
[367196045,1750698642047,-1599.2,0.00022994,2]
[367196046,1750698642057,-2233.74,0.00022994,2]
[367196049,1750698642070,-490.0,0.00022994,2]
[367196051,1750698642080,-779.66,0.00022994,2]
[367196052,1750698642090,-2071.71,0.00022994,2]
[367196055,1750698642101,-2448.89,0.00022994,2]
[367196057,1750698642111,-1609.83,0.00022994,2]
[367196059,1750698642121,-771.85,0.00022994,2]
[367196061,1750698642131,-17894.27,0.00022994,2]
[367196063,1750698642140,-490.0,0.00022994,2]
[367196065,1750698642149,-2144.67,0.00022994,2]
[367196067,1750698642158,-1031.7,0.00022994,2]
[367196102,1750698642478,-490.0,0.00022994,2]
[367196106,1750698642502,-1643.47,0.00022994,2]
[367196108,1750698642512,-1164.0,0.00022994,2]
[367196110,1750698642522,-3265.53,0.00022994,2]
[367196112,1750698642531,-1649.42,0.00022994,2]
[367196114,1750698642541,-490.0,0.00022994,2]
[367196116,1750698642551,-6326.13,0.00022994,2]
[367196118,1750698642559,-2939.17,0.00022994,2]
[367196120,1750698642571,-2564.45,0.00022994,2]
[367196122,1750698642581,-2032.0,0.00022994,2]
[367196124,1750698642591,-7426.18,0.00022994,2]
[367196126,1750698642600,-1353.02,0.00022994,2]
[367196128,1750698642610,-490.0,0.00022994,2]
[367196130,1750698642619,-6426.78,0.00022994,2]
[367196132,1750698642628,-1188.46,0.00022994,2]
[367196134,1750698642639,-732.12,0.00022994,2]
[367196136,1750698642649,-3016.63,0.00022994,2]
[367196138,1750698642658,-671.94,0.00022994,2]
[367196140,1750698642668,-1261.71,0.00022994,2]
[367196142,1750698642678,-8384.06,0.00022994,2]
[367196144,1750698642687,-2734.07,0.00022994,2]
[367196145,1750698642697,-232.26957724,0.00022994,2]
[367196147,1750698642706,-1338.84,0.00022994,2]
[367196149,1750698642716,-785.94,0.00022994,2]
[367196151,1750698642726,-503.82,0.00022994,2]
[367196153,1750698642736,-2908.2,0.00022994,2]
[367196156,1750698642746,-490.0,0.00022994,2]
[367196158,1750698642755,-1254.38,0.00022994,2]
[367196160,1750698642765,-792.37,0.00022994,2]
[367196162,1750698642775,-3998.48,0.00022994,2]
[367196164,1750698642785,-6443.202937,0.00022994,2]
[367196166,1750698642795,-490.0,0.00022994,2]
[367196168,1750698642804,-1561.52,0.00022994,2]
[367196170,1750698642816,-1450.98,0.00022994,2]
[367196172,1750698642827,-1020.65,0.00022994,2]
[367196174,1750698642836,-1226.48,0.00022994,2]
[367196177,1750698642847,-151.219152,0.00022994,2]
[367196180,1750698642857,-927.5,0.00022994,2]
[367196183,1750698642866,-573.95,0.00022994,2]
[367196186,1750698642876,-490.0,0.00022994,2]
[367196189,1750698642886,-888.64,0.00022994,2]
[367196192,1750698642897,-1568.0,0.00022994,2]
[367196195,1750698642906,-1236.22,0.00022994,2]
[367196198,1750698642916,-2086.57,0.00022994,2]
[367196201,1750698642925,-11128.95,0.00022994,2]
[367196204,1750698642935,-3474.170252,0.00022994,2]
[367196207,1750698642945,-1094.52,0.00022994,2]
[367196210,1750698642955,-578.12,0.00022994,2]
[367196213,1750698642965,-1429.33,0.00022994,2]
[367196216,1750698642975,-2550.63,0.00022994,2]
[367196219,1750698642985,-1705.63,0.00022994,2]
[367196222,1750698642995,-1403.27,0.00022994,2]
[367196225,1750698643005,-1000.0,0.00022994,2]
[367196228,1750698643015,-800.49,0.00022994,2]
[367196230,1750698643025,-2306.86,0.00022994,2]
[367196232,1750698643037,-3458.41,0.00022994,2]
[367196234,1750698643047,-490.0,0.00022994,2]
[367196236,1750698643057,-573.21,0.00022994,2]
[367196238,1750698643069,-1743.2,0.00022994,2]
[367196240,1750698643080,-14104.896354,0.00022994,2]
[367196242,1750698643089,-943.07,0.00022994,2]
[367196244,1750698643099,-943.07,0.00022994,2]
[367196246,1750698643109,-943.07,0.00022994,2]
[367196248,1750698643120,-10144.14,0.00022994,2]
[367196250,1750698643130,-490.0,0.00022994,2]
[367196252,1750698643140,-886.2,0.00022994,2]
[367196254,1750698643150,-2114.89,0.00022994,2]
[367196256,1750698643160,-490.0,0.00022994,2]
[367196258,1750698643171,-4042.92,0.00022994,2]
[367196260,1750698643188,-2394.25,0.00022994,2]
[367196262,1750698643198,-731.69,0.00022994,2]
[367196264,1750698643207,-1526.25,0.00022994,2]
[367196266,1750698643217,-1361.84,0.00022994,2]
[367196268,1750698643228,-2763.6,0.00022994,2]
[367196271,1750698643238,-493.15,0.00022994,2]
[367196273,1750698643248,-5649.05,0.00022994,2]
[367196275,1750698643258,-841.69,0.00022994,2]
[367196277,1750698643268,-1021.6,0.00022994,2]
[367196279,1750698643278,-1566.44,0.00022994,2]
[367196281,1750698643288,-1307.2,0.00022994,2]
[367196283,1750698643297,-2220.37,0.00022994,2]
[367196285,1750698643307,-1694.76,0.00022994,2]
[367196287,1750698643319,-1333.28,0.00022994,2]
[367196288,1750698643328,-4728.59,0.00022994,2]
[367196289,1750698643338,-1015.78,0.00022994,2]
[367196290,1750698643348,-1015.78,0.00022994,2]
[367196291,1750698643358,-1015.78,0.00022994,2]
[367196292,1750698643368,-6206.01,0.00022994,2]
[367196293,1750698643378,-830.47,0.00022994,2]
[367196294,1750698643388,-1243.22,0.00022994,2]
[367196295,1750698643397,-1672.77,0.00022994,2]
[367196296,1750698643407,-585.45,0.00022994,2]
[367196297,1750698643417,-15974.58,0.00022994,2]
[367196298,1750698643428,-1042.64,0.00022994,2]
[367196299,1750698643438,-1213.26,0.00022994,2]
[367196300,1750698643447,-1057.02,0.00022994,2]
[367196301,1750698643457,-8982.57,0.00022994,2]
[367196302,1750698643466,-490.0,0.00022994,2]
[367196303,1750698643476,-3184.98,0.00022994,2]
[367196304,1750698643486,-584.73,0.00022994,2]
[367196305,1750698643495,-955.19,0.00022994,2]
[367196306,1750698643505,-1281.44,0.00022994,2]
[367196307,1750698643515,-1451.39,0.00022994,2]
[367196308,1750698643524,-1334.22,0.00022994,2]
[367196309,1750698643534,-3646.54,0.00022994,2]
[367196310,1750698643543,-2077.8,0.00022994,2]
[367196311,1750698643553,-1126.53,0.00022994,2]
[367196312,1750698643562,-1062.91,0.00022994,2]
[367196313,1750698643572,-1754.15,0.00022994,2]
[367196314,1750698643582,-783.6,0.00022994,2]
[367196315,1750698643592,-1637.16,0.00022994,2]
[367196316,1750698643602,-490.0,0.00022994,2]
[367196317,1750698643612,-1986.85,0.00022994,2]
[367196318,1750698643622,-30257.07,0.00022994,2]
[367196319,1750698643633,-490.0,0.00022994,2]
[367196320,1750698643643,-151.0,0.00022994,7]
[367196321,1750698643652,-4431.79,0.00022994,2]
[367196323,1750698643662,-1908.75,0.00022994,2]
[367196325,1750698643671,-1251.43,0.00022994,2]
[367196327,1750698643681,-1043.13,0.00022994,2]
[367196329,1750698643691,-151.0,0.00022994,7]
[367196331,1750698643701,-1449.88,0.00022994,2]
[367196333,1750698643710,-3408.85,0.00022994,2]
[367196335,1750698643720,-1487.37,0.00022994,2]
[367196337,1750698643730,-151.0,0.00022994,7]
[367196339,1750698643740,-1477.39,0.00022994,2]
[367196341,1750698643750,-1309.69,0.00022994,2]
[367196343,1750698643760,-1399.23,0.00022994,2]
[367196345,1750698643770,-4978.94,0.00022994,2]
[367196347,1750698643779,-1851.33,0.00022994,2]
[367196349,1750698643789,-1549.84,0.00022994,2]
[367196351,1750698643799,-1569.7,0.00022994,2]
[367196353,1750698643809,-4930.1,0.00022994,2]
[367196355,1750698643820,-2819.42,0.00022994,2]
[367196357,1750698643830,-3120.58,0.00022994,2]
[367196359,1750698643839,-1734.46,0.00022994,2]
[367196361,1750698643849,-1884.11,0.00022994,2]
[367196363,1750698643859,-4270.66,0.00022994,2]
[367196365,1750698643868,-747.75,0.00022994,2]
[367196367,1750698643878,-2881.99,0.00022994,2]
[367196369,1750698643888,-5897.6,0.00022994,2]
[367196371,1750698643898,-1573.74,0.00022994,2]
[367196373,1750698643907,-490.0,0.00022994,2]
[367196375,1750698643916,-1383.69,0.00022994,2]
[367196377,1750698643926,-885.33,0.00022994,2]
[367196379,1750698643935,-1501.78,0.00022994,2]
[367196381,1750698643945,-648.39,0.00022994,2]
[367196383,1750698643955,-648.39,0.00022994,2]
[367196385,1750698643965,-648.39,0.00022994,2]
[367196388,1750698643975,-490.0,0.00022994,2]
[367196390,1750698643985,-300.0,0.00022994,2]
[367196391,1750698643996,-300.0,0.00022994,2]
[367196393,1750698644007,-300.0,0.00022994,2]
[367196396,1750698644019,-300.0,0.00022994,2]
[367196398,1750698644030,-300.0,0.00022994,2]
[367196399,1750698644043,-415.72833266,0.00022995,2]
[367196402,1750698644054,-490.0,0.00022995,2]
[367196404,1750698644063,-490.0,0.00022995,2]
[367196406,1750698644075,-490.0,0.00022995,2]
[367196408,1750698644084,-490.0,0.00022995,2]
[367196410,1750698644096,-490.0,0.00022995,2]
[367196412,1750698644105,-490.0,0.00022995,2]
[367196414,1750698644114,-490.0,0.00022995,2]
[367196416,1750698644125,-490.0,0.00022995,2]
[367196418,1750698644134,-490.0,0.00022995,2]
[367196420,1750698644144,-490.0,0.00022995,2]
[367196422,1750698644153,-420.0,0.00022995,2]
[367196424,1750698644163,-420.28896483,0.00022995,2]
[367196426,1750698644172,-490.0,0.00022995,2]
[367196428,1750698644182,-490.0,0.00022995,2]
[367196430,1750698644191,-498.2432003,0.00022995,2]
[367196432,1750698644201,-490.0,0.00022995,2]